bitfinex/quotes_BTCUSD_20240620
["timestamp","ask_amount","ask_price","bid_price","bid_amount"]
[1718904851384,0.1832,64922.0,64917.0,0.18629644]
[1718904851582,0.0320295,64921.0,64917.0,0.001]
[1718904851886,0.0320295,64921.0,64905.0,0.15256112]
[1718904851887,0.0106256,64918.0,64915.0,0.001]
[1718904852097,0.0106256,64918.0,64901.0,0.0893744]
[1718904852098,0.27594,64916.0,64901.0,0.27467084]
[1718904852276,0.1832,64911.0,64902.0,0.18529644]
[1718904852488,0.1832,64906.0,64902.0,0.18529644]
[1718904852698,0.1832,64906.0,64898.0,0.18529644]
[1718904852921,0.1832,64906.0,64899.0,0.0893744]
[1718904853129,0.1832,64906.0,64901.0,0.18529644]
[1718904853330,0.1832,64911.0,64903.0,0.07628172]
[1718904853636,0.1832,64911.0,64903.0,0.26157816]
[1718904853834,0.1832,64911.0,64902.0,0.27467084]
[1718904854109,0.1832,64911.0,64905.0,0.18529644]
[1718904854312,0.24530112,64915.0,64903.0,0.35095256]
[1718904854519,0.1832,64912.0,64903.0,0.0893744]
[1718904854892,0.1832,64912.0,64901.0,0.18529644]
[1718904855095,0.1832,64912.0,64897.0,0.18529644]
[1718904855096,0.001,64906.0,64897.0,0.18529644]
[1718904855298,0.028694,64906.0,64899.0,0.0893744]
[1718904855499,0.1832,64907.0,64903.0,0.001]
[1718904855700,0.1832,64904.0,64903.0,0.002]
[1718904856023,0.1832,64904.0,64903.0,0.001]
[1718904857969,0.1952,64904.0,64903.0,0.002]
[1718904858202,0.46939512,64904.0,64903.0,0.002]
[1718904858416,0.50197367,64904.0,64888.0,0.27467084]
[1718904858621,0.09274,64902.0,64891.0,0.07628172]
[1718904858868,0.00957855,64901.0,64897.0,0.18529644]
[1718904859044,0.00957855,64900.0,64897.0,0.18529644]
[1718904859243,0.012,64904.0,64897.0,0.18529644]
[1718904859480,0.00957906,64903.0,64897.0,0.18529644]
[1718904859861,0.012,64904.0,64903.0,0.000946]
[1718904860056,0.02157915,64904.0,64903.0,0.000946]
[1718904860884,0.00957915,64904.0,64903.0,0.000946]
[1718904861286,0.02057915,64904.0,64903.0,0.000946]
[1718904861679,0.00957915,64904.0,64903.0,0.000946]
[1718904862264,0.02057915,64904.0,64903.0,0.000946]
[1718904862860,0.03357915,64904.0,64903.0,0.000946]
[1718904863072,0.024,64904.0,64903.0,0.000946]
[1718904863265,0.03358025,64904.0,64903.0,0.000946]
[1718904863676,0.07350908,64904.0,64903.0,0.000946]
[1718904865230,0.03358025,64904.0,64903.0,0.000946]
[1718904866080,0.03357299,64904.0,64903.0,0.000946]
[1718904868661,0.03357299,64904.0,64903.0,0.29438014]
[1718904869455,0.03357299,64904.0,64903.0,0.0903204]
[1718904869668,0.02057299,64904.0,64903.0,0.29438014]
[1718904870077,0.02649672,64904.0,64903.0,0.29438014]
[1718904870276,0.01557299,64904.0,64903.0,0.29438014]
[1718904870561,0.01857299,64904.0,64903.0,0.29438014]
[1718904872049,0.01857299,64904.0,64903.0,0.27561684]
[1718904872353,0.01857645,64904.0,64903.0,0.27561684]
[1718904872486,0.01857645,64904.0,64903.0,0.29438014]
[1718904874548,0.01857645,64904.0,64903.0,0.000946]
[1718904874983,0.01857645,64904.0,64903.0,0.27561684]
[1718904875210,0.01857645,64904.0,64903.0,0.29438014]
[1718904875495,0.01857591,64904.0,64903.0,0.29438014]
[1718904875836,0.01857591,64904.0,64903.0,0.000946]
[1718904876089,0.13348054,64904.0,64903.0,0.000946]
[1718904876638,0.01857591,64904.0,64903.0,0.000946]
[1718904878021,0.01857591,64904.0,64903.0,0.29438014]
[1718904878247,0.01857591,64904.0,64903.0,0.37728014]
[1718904878449,0.01857901,64904.0,64903.0,0.37728014]
[1718904878868,0.01857762,64904.0,64903.0,0.37728014]
[1718904879650,0.009,64904.0,64903.0,0.37728014]
[1718904879857,0.01857807,64904.0,64903.0,0.37728014]
[1718904881547,0.01857799,64904.0,64903.0,0.37728014]
[1718904881751,0.01857799,64904.0,64903.0,0.0903204]
[1718904883016,0.01857799,64904.0,64903.0,0.29438014]
[1718904883393,0.01857799,64904.0,64903.0,0.27561684]
[1718904884175,0.01857799,64904.0,64903.0,0.29438014]
[1718904884641,0.01857522,64904.0,64903.0,0.29438014]
[1718904885379,0.13357267,64904.0,64903.0,0.29438014]
[1718904885567,0.01857522,64904.0,64903.0,0.68619927]
[1718904886189,0.01857522,64904.0,64903.0,0.63844126]
[1718904886595,0.01557522,64904.0,64903.0,0.63844126]
[1718904886794,0.00957522,64904.0,64903.0,0.63844126]
[1718904886993,0.00086,64911.0,64910.0,0.0893744]
[1718904887202,0.05654079,64911.0,64910.0,0.53227698]
[1718904887413,0.01043539,64911.0,64910.0,0.72647698]
[1718904887750,0.01043586,64911.0,64910.0,0.72647698]
[1718904888277,0.01043586,64911.0,64910.0,0.79912468]
[1718904888487,0.01143586,64911.0,64910.0,0.80512468]
[1718904889549,0.01243586,64911.0,64910.0,0.81012468]
[1718904889752,0.01243586,64911.0,64910.0,0.80512468]
[1718904890167,0.01343586,64911.0,64910.0,0.81012468]
[1718904890546,0.01343699,64911.0,64910.0,0.81012468]
[1718904891268,0.01343736,64911.0,64910.0,0.91012468]
[1718904891666,0.01343736,64911.0,64910.0,0.83747698]
[1718904891867,0.01343736,64911.0,64910.0,0.76119526]
[1718904892031,0.01343736,64911.0,64910.0,0.75119526]
[1718904892249,0.01343736,64911.0,64910.0,0.66182086]
[1718904892455,0.01343736,64911.0,64910.0,0.75119526]
[1718904892867,0.01343736,64911.0,64910.0,0.82731479]
[1718904893510,0.00386,64911.0,64910.0,0.83731479]
[1718904893760,0.0452562,64914.0,64913.0,0.02]
[1718904893761,0.04300281,64914.0,64913.0,0.02]
[1718904893931,0.02416625,64927.0,64913.0,0.02]
[1718904893932,0.1149991,64924.0,64923.0,0.29343414]
[1718904894130,0.1149991,64925.0,64924.0,0.27467084]
[1718904894368,0.12457659,64925.0,64924.0,0.29343414]
[1718904894805,0.12457659,64925.0,64924.0,0.32277755]
[1718904894978,0.00957749,64925.0,64924.0,0.32277755]
[1718904895206,0.02416625,64927.0,64925.0,0.29343414]
[1718904895419,0.05136935,64927.0,64926.0,0.29343414]
[1718904895637,0.03374231,64927.0,64926.0,0.29343414]
[1718904895840,0.03374231,64927.0,64926.0,0.48433414]
[1718904896464,0.02416625,64927.0,64926.0,0.48433414]
[1718904896635,0.03374166,64927.0,64926.0,0.48433414]
[1718904897058,0.03374166,64927.0,64926.0,0.27567084]
[1718904897059,0.03874166,64927.0,64926.0,0.27567084]
[1718904898019,0.04174166,64927.0,64926.0,0.29443414]
[1718904898223,0.04174166,64927.0,64926.0,0.27567084]
[1718904898801,0.04174166,64927.0,64926.0,0.29443414]
[1718904899435,0.04174166,64927.0,64926.0,0.39653414]
[1718904899436,0.03216625,64927.0,64926.0,0.39653414]
[1718904899652,0.03216625,64927.0,64926.0,0.48443414]
[1718904899653,0.04174092,64927.0,64926.0,0.48443414]
[1718904900476,0.04174092,64927.0,64926.0,0.29443414]
[1718904901089,0.04174092,64927.0,64926.0,0.27567084]
[1718904901475,0.04174092,64927.0,64926.0,0.29443414]
[1718904901807,0.04174092,64927.0,64926.0,0.44699526]
[1718904901975,0.01757467,64927.0,64926.0,0.63399526]
[1718904902390,0.0175757,64927.0,64926.0,0.63399526]
[1718904902948,0.0125757,64927.0,64926.0,0.63299526]
[1718904903150,0.0125757,64927.0,64926.0,0.63599526]
[1718904903349,0.0095757,64927.0,64926.0,0.63599526]
[1718904903552,0.0095757,64931.0,64926.0,0.63999526]
[1718904903773,0.05395642,64932.0,64926.0,0.63999526]
[1718904903774,0.05395642,64932.0,64931.0,0.29343414]
[1718904903975,0.06353441,64932.0,64931.0,0.29343414]
[1718904904187,0.06353441,64932.0,64930.0,0.0893744]
[1718904904399,0.00957799,64931.0,64926.0,0.007]
[1718904904569,0.00957799,64931.0,64927.0,0.0893744]
[1718904904570,0.02036943,64931.0,64927.0,0.0893744]
[1718904904795,0.00957799,64930.0,64927.0,0.0893744]
[1718904905002,0.00957799,64930.0,64926.0,0.003]
[1718904905003,0.05119505,64930.0,64926.0,0.003]
[1718904905199,0.00957799,64929.0,64927.0,0.0893744]
[1718904905582,0.13988781,64931.0,64927.0,0.0893744]
[1718904905583,0.00957799,64928.0,64927.0,0.0893744]
[1718904905993,0.02516148,64931.0,64928.0,0.18529644]
[1718904906334,0.00957627,64930.0,64929.0,0.18529644]
[1718904906545,0.00957627,64930.0,64929.0,0.32277755]
[1718904906756,0.00957627,64930.0,64929.0,0.48393414]
[1718904907761,0.00957627,64930.0,64929.0,0.63649526]
[1718904908085,0.00957627,64930.0,64929.0,0.64749526]
[1718904908500,0.00957627,64930.0,64929.0,0.63749526]
[1718904908918,0.00957627,64930.0,64929.0,0.64749526]
[1718904909265,0.00957627,64930.0,64929.0,0.63749526]
[1718904909819,0.01157627,64930.0,64929.0,0.63749526]
[1718904910022,0.01157627,64930.0,64929.0,0.29443414]
[1718904910617,0.02226969,64930.0,64929.0,0.18629644]
[1718904910822,0.01157627,64930.0,64929.0,0.001]
[1718904911051,0.01157407,64930.0,64929.0,0.001]
[1718904911461,0.04053727,64930.0,64929.0,0.001]
[1718904912058,0.01157407,64930.0,64924.0,0.18529644]
[1718904912238,0.00957407,64929.0,64925.0,0.18529644]
[1718904912883,0.00957407,64929.0,64922.0,0.0893744]
[1718904913262,0.00957407,64928.0,64925.0,0.18529644]
[1718904913482,0.13886063,64931.0,64923.0,0.0187633]
[1718904913483,0.00957407,64927.0,64923.0,0.18529644]
[1718904913683,0.00957407,64926.0,64922.0,0.0893744]
[1718904913887,0.00957407,64925.0,64922.0,0.27467084]
[1718904914088,0.1389074,64931.0,64929.0,0.0893744]
[1718904914263,0.00957437,64930.0,64929.0,0.27467084]
[1718904915602,0.00957437,64930.0,64929.0,0.29343414]
[1718904915828,0.01057437,64930.0,64929.0,0.29343414]
[1718904916666,0.01057437,64930.0,64929.0,0.38083414]
[1718904917171,0.01157591,64930.0,64929.0,0.38083414]
[1718904920070,0.002,64930.0,64929.0,0.38083414]
[1718904920442,0.01157209,64930.0,64929.0,0.38083414]
[1718904920974,0.01157209,64930.0,64925.0,0.18529644]
[1718904921186,0.01157209,64930.0,64926.0,0.27467084]
[1718904921187,0.00957209,64929.0,64926.0,0.27467084]
[1718904921335,0.030963,64930.0,64929.0,0.18529644]
[1718904921536,0.04053156,64930.0,64927.0,0.18529644]
[1718904921742,0.00956856,64929.0,64927.0,0.18529644]
[1718904922088,0.030963,64930.0,64927.0,0.18529644]
[1718904922089,0.00956856,64928.0,64927.0,0.18529644]
[1718904922578,0.00956856,64928.0,64925.0,0.18529644]
[1718904922773,0.03001857,64927.0,64922.0,0.18529644]
[1718904922974,0.00956856,64926.0,64922.0,0.18529644]
[1718904923213,0.02045001,64927.0,64923.0,0.18529644]
[1718904923416,0.00956765,64926.0,64923.0,0.18529644]
[1718904923584,0.11476278,64927.0,64925.0,0.27467084]
[1718904923806,0.11476278,64927.0,64926.0,0.18529644]
[1718904924050,0.00956783,64927.0,64926.0,0.27467084]
[1718904924521,0.12433061,64927.0,64926.0,0.27467084]
[1718904924756,0.12433061,64927.0,64926.0,0.0893744]
[1718904924928,0.00956783,64927.0,64918.0,0.0893744]
[1718904925137,0.00956783,64927.0,64913.0,0.0187633]
[1718904925138,0.1148068,64922.0,64916.0,0.18529644]
[1718904925305,0.12437463,64921.0,64919.0,0.0893744]
[1718904925486,0.1827,64923.0,64919.0,0.0893744]
[1718904925487,0.12437463,64920.0,64919.0,0.27467084]
[1718904925689,0.00956783,64920.0,64919.0,0.27467084]
[1718904925895,0.12440241,64920.0,64919.0,0.27467084]
[1718904926245,0.12440223,64920.0,64919.0,0.27467084]
[1718904926398,0.00956734,64920.0,64919.0,0.27467084]
[1718904926589,0.00956734,64920.0,64919.0,0.27667084]
[1718904926818,0.00956734,64920.0,64919.0,0.002]
[1718904927017,0.05184826,64920.0,64914.0,0.000946]
[1718904927198,0.11488606,64915.0,64914.0,0.000946]
[1718904927415,0.00956734,64915.0,64914.0,0.000946]
[1718904929951,0.11485065,64889.0,64887.0,0.0893744]
[1718904930151,0.1827,64895.0,64887.0,0.0893744]
[1718904930152,0.00956622,64888.0,64887.0,0.0893744]
[1718904930381,0.12432288,64888.0,64886.0,0.18529644]
[1718904930714,0.00956622,64887.0,64885.0,0.27467084]
[1718904930892,0.12432288,64887.0,64886.0,0.20405974]
[1718904931031,0.12432288,64887.0,64886.0,0.18529644]
[1718904931452,0.01424092,64887.0,64886.0,0.18529644]
[1718904932050,0.01424092,64887.0,64885.0,0.001]
[1718904932307,0.01912591,64886.0,64885.0,0.27567084]
[1718904932525,0.01912591,64886.0,64885.0,0.27467084]
[1718904932687,0.02379772,64886.0,64885.0,0.29343414]
[1718904933009,0.02379772,64886.0,64885.0,0.0893744]
[1718904933215,0.02379772,64886.0,64885.0,0.18529644]
[1718904933353,0.01912591,64886.0,64885.0,0.0893744]
[1718904933558,0.01912591,64886.0,64885.0,0.29343414]
[1718904933773,0.01912591,64886.0,64885.0,0.27467084]
[1718904934220,0.01912591,64886.0,64885.0,0.29343414]
[1718904934659,0.01912591,64886.0,64885.0,0.002]
[1718904934864,0.01912591,64886.0,64876.0,0.0812]
[1718904934865,0.20182591,64886.0,64872.0,0.0893744]
[1718904935102,0.1827,64879.0,64872.0,0.27467084]
[1718904935293,0.1827,64879.0,64869.0,0.1029]
[1718904935294,0.1827,64874.0,64869.0,0.0893744]
[1718904935503,0.00956009,64873.0,64869.0,0.0893744]
[1718904935709,0.00956009,64873.0,64870.0,0.18529644]
[1718904935710,0.01423898,64873.0,64870.0,0.18529644]
[1718904935912,0.00956009,64872.0,64870.0,0.18529644]
[1718904936119,0.00956009,64872.0,64869.0,0.0893744]
[1718904936120,0.00956009,64872.0,64871.0,0.18529644]
[1718904936331,0.00956009,64872.0,64864.0,0.0847]
[1718904936332,0.1827,64874.0,64873.0,0.27467084]
[1718904936504,0.11292259,64885.0,64877.0,0.18529644]
[1718904936699,0.00956025,64884.0,64877.0,0.18529644]
[1718904937004,0.00956025,64884.0,64880.0,0.18529644]
[1718904937005,0.00956025,64883.0,64880.0,0.18529644]
[1718904937339,0.00467728,64882.0,64881.0,0.18529644]
[1718904937506,0.01423753,64882.0,64878.0,0.0893744]
[1718904937702,0.00956025,64881.0,64880.0,0.18529644]
[1718904937916,0.00956025,64881.0,64880.0,0.29343414]
[1718904938135,0.05459665,64886.0,64879.0,0.16238172]
[1718904938136,0.013,64884.0,64883.0,0.29343414]
[1718904938299,0.05459665,64886.0,64885.0,0.27467084]
[1718904938498,0.05459665,64886.0,64885.0,0.29343414]
[1718904938499,0.0641587,64886.0,64885.0,0.29343414]
[1718904939303,0.0641587,64886.0,64885.0,0.27467084]
[1718904939448,0.0641587,64886.0,64885.0,0.0893744]
[1718904940370,0.0751587,64886.0,64885.0,0.001]
[1718904940772,0.0641587,64886.0,64884.0,0.27467084]
[1718904940974,0.00956205,64885.0,64884.0,0.27467084]
[1718904941236,0.06159665,64886.0,64885.0,0.20405974]
[1718904941414,0.07915954,64886.0,64885.0,0.29343414]
[1718904941831,0.02456291,64886.0,64885.0,0.64569526]
[1718904942031,0.01656291,64886.0,64885.0,0.64569526]
[1718904942446,0.061766,64907.0,64885.0,0.64569526]
[1718904942447,0.061766,64907.0,64902.0,0.01]
[1718904942645,0.45769034,64905.0,64901.0,0.0893744]
[1718904942841,0.00455129,64904.0,64898.0,0.0893744]
[1718904943031,0.21112418,64906.0,64898.0,0.0893744]
[1718904943225,0.00452963,64905.0,64898.0,0.0893744]
[1718904943456,0.00452963,64905.0,64898.0,0.27467084]
[1718904943772,0.00452963,64905.0,64901.0,0.001]
[1718904943773,0.01052963,64905.0,64901.0,0.001]
[1718904943999,0.00956687,64904.0,64901.0,0.001]
[1718904944119,0.00956711,64903.0,64896.0,0.18529644]
[1718904944315,0.00956711,64902.0,64898.0,0.001]
[1718904944515,0.193,64901.0,64898.0,0.001]
[1718904944739,0.00956711,64900.0,64892.0,0.0893744]
[1718904944949,0.19752177,64901.0,64891.0,0.18529644]
[1718904945168,0.00451488,64899.0,64891.0,0.18529644]
[1718904945342,0.18722669,64900.0,64892.0,0.27467084]
[1718904945551,0.004507,64898.0,64892.0,0.18529644]
[1718904945749,0.1827,64895.0,64884.0,0.27467084]
[1718904945948,0.1827,64895.0,64890.0,0.18529644]
[1718904946214,0.00450799,64894.0,64890.0,0.18529644]
[1718904946412,0.00450799,64894.0,64893.0,0.18529644]
[1718904946819,0.27544,64900.0,64894.0,0.18529644]
[1718904946820,0.004,64898.0,64894.0,0.18529644]
[1718904947047,0.004,64898.0,64888.0,0.0893744]
[1718904947048,0.00956673,64897.0,64890.0,0.18529644]
[1718904947235,0.00956708,64897.0,64890.0,0.18529644]
[1718904947442,0.00956708,64896.0,64890.0,0.002]
[1718904947617,0.00956708,64895.0,64890.0,0.002]
[1718904947821,0.09274,64899.0,64884.0,0.0893744]
[1718904947822,0.00956708,64894.0,64884.0,0.0893744]
[1718904948026,0.09274,64898.0,64884.0,0.0893744]
[1718904948027,0.1827,64886.0,64884.0,0.0893744]
[1718904948389,0.1827,64886.0,64882.0,0.18529644]
[1718904948390,0.1827,64886.0,64882.0,0.0893744]
[1718904948594,0.20097,64886.0,64882.0,0.0893744]
[1718904949622,0.20097,64886.0,64881.0,0.18529644]
[1718904950122,0.20097,64886.0,64859.0,0.202]
[1718904950123,0.20097,64886.0,64877.0,0.0893744]
[1718904950338,0.20097,64886.0,64871.0,0.1056]
[1718904950339,0.20097,64886.0,64882.0,0.003]
[1718904950532,0.021127,64885.0,64882.0,0.003]
[1718904950732,0.021127,64885.0,64882.0,0.001]
[1718904951427,0.021127,64885.0,64879.0,0.18529644]
[1718904951854,0.024127,64885.0,64880.0,0.18529644]
[1718904952055,0.2,64900.0,64887.0,0.18529644]
[1718904952223,0.1827,64896.0,64889.0,0.18529644]
[1718904952422,0.1,64895.0,64889.0,0.18529644]
[1718904953365,0.1,64895.0,64888.0,0.27467084]
[1718904953493,0.1,64895.0,64888.0,0.0893744]
[1718904953696,0.1,64895.0,64889.0,0.18529644]
[1718904953969,0.11,64895.0,64889.0,0.18629644]
[1718904954291,0.1,64895.0,64889.0,0.18529644]
[1718904954502,0.11,64895.0,64889.0,0.18529644]
[1718904955116,0.118,64895.0,64889.0,0.18529644]
[1718904955351,0.00415964,64894.0,64890.0,0.18529644]
[1718904956168,0.00415964,64894.0,64886.0,0.0893744]
[1718904956169,0.04805557,64894.0,64886.0,0.0893744]
[1718904956339,0.04805557,64894.0,64885.0,0.18529644]
[1718904956539,0.1440997,64899.0,64888.0,0.0893744]
[1718904956751,0.1827,64892.0,64889.0,0.001]
[1718904957076,0.00398524,64891.0,64884.0,0.0893744]
[1718904957277,0.1827,64892.0,64884.0,0.0893744]
[1718904957439,0.20097,64892.0,64886.0,0.001]
[1718904957660,0.20097,64892.0,64884.0,0.0893744]
[1718904957661,0.00398633,64891.0,64884.0,0.0893744]
[1718904958387,0.00398633,64891.0,64878.0,0.2001093]
[1718904958388,0.1827,64887.0,64879.0,0.0893744]
[1718904958571,0.1827,64885.0,64879.0,0.07333677]
[1718904958962,0.02227,64892.0,64865.0,0.000946]
[1718904958963,0.02666323,64879.0,64865.0,0.000946]
[1718904959168,0.1827,64867.0,64862.0,0.08280777]
[1718904959606,0.00395555,64866.0,64862.0,0.08280777]
[1718904960480,0.00395555,64866.0,64862.0,0.08980777]
[1718904960685,0.00395555,64866.0,64862.0,0.08280777]
[1718904961006,0.00395555,64866.0,64862.0,0.08580777]
[1718904961202,0.00395555,64866.0,64863.0,0.18529644]
[1718904961824,0.00395555,64866.0,64862.0,0.27110421]
[1718904962023,0.00395555,64866.0,64865.0,0.20405974]
[1718904962221,0.001,64866.0,64865.0,0.27739651]
[1718904962590,0.002,64866.0,64865.0,0.27739651]
[1718904962795,0.001,64866.0,64865.0,0.27739651]
[1718904962997,0.1827,64877.0,64870.0,0.20405974]
[1718904962998,0.02802704,64871.0,64870.0,0.20405974]
[1718904963203,0.00396005,64871.0,64870.0,0.18529644]
[1718904963494,0.1827,64877.0,64870.0,0.18529644]
[1718904964017,0.00396988,64876.0,64870.0,0.18529644]
[1718904964397,0.002,64871.0,64870.0,0.18529644]
[1718904964597,0.002,64871.0,64870.0,0.27739651]
[1718904964598,0.00596005,64871.0,64870.0,0.27739651]
[1718904965319,0.002,64871.0,64870.0,0.27739651]
[1718904965660,0.02618074,64871.0,64870.0,0.27739651]
[1718904965959,0.02418074,64871.0,64870.0,0.27739651]
[1718904966170,0.02618074,64871.0,64870.0,0.27839651]
[1718904966374,0.02618074,64871.0,64870.0,0.27739651]
[1718904966737,0.02918074,64871.0,64870.0,0.27739651]
[1718904966931,0.02918074,64871.0,64870.0,0.42995763]
[1718904967528,0.02710314,64871.0,64870.0,0.42995763]
[1718904967736,0.02710314,64871.0,64870.0,0.43095763]
[1718904968366,0.02710314,64871.0,64870.0,0.42995763]
[1718904968569,0.02710314,64871.0,64870.0,0.51345763]
[1718904968768,0.02710314,64871.0,64870.0,0.61625763]
[1718904969219,0.02710314,64871.0,64870.0,0.62525763]
[1718904969423,0.02410314,64871.0,64870.0,0.62525763]
[1718904969568,0.02510314,64871.0,64870.0,0.62625763]
[1718904969768,0.02510314,64871.0,64870.0,0.69088339]
[1718904970171,0.02510314,64871.0,64870.0,0.68888339]
[1718904970418,0.02510314,64871.0,64870.0,0.69388339]
[1718904970940,0.0441805,64877.0,64876.0,0.28739651]
[1718904971070,0.061777,64894.0,64892.0,0.18529644]
[1718904971322,0.02791776,64893.0,64892.0,0.20405974]
[1718904971484,0.00400276,64893.0,64892.0,0.20405974]
[1718904971689,0.04545584,64895.0,64892.0,0.20405974]
[1718904971890,0.04545584,64895.0,64891.0,0.07333677]
[1718904971891,0.00400472,64894.0,64891.0,0.07333677]
[1718904972080,0.00400472,64894.0,64892.0,0.18529644]
[1718904972472,0.00400472,64894.0,64891.0,0.07333677]
[1718904972693,0.00956483,64893.0,64891.0,0.07333677]
[1718904972893,0.00956483,64893.0,64875.0,0.01]
[1718904972894,0.0023,64892.0,64878.0,0.07333677]
[1718904973096,0.1827,64888.0,64880.0,0.18529644]
[1718904973300,0.1827,64888.0,64878.0,0.07333677]
[1718904973523,0.01355114,64887.0,64875.0,0.18529644]
[1718904973730,0.00956414,64886.0,64875.0,0.18529644]
[1718904974131,0.00397912,64885.0,64876.0,0.18529644]
[1718904974392,0.00956414,64884.0,64873.0,0.18529644]
[1718904974573,0.1827,64882.0,64873.0,0.25863321]
[1718904974794,0.1827,64882.0,64873.0,0.07333677]
[1718904974795,0.00956414,64881.0,64873.0,0.07333677]
[1718904974945,0.03178687,64881.0,64873.0,0.07333677]
[1718904975147,0.00956414,64880.0,64870.0,0.25863321]
[1718904975358,0.0224051,64879.0,64873.0,0.07333677]
[1718904975757,0.01353343,64878.0,64873.0,0.25863321]
[1718904975967,0.00956414,64877.0,64873.0,0.25863321]
[1718904976189,0.00956414,64877.0,64867.0,0.079]
[1718904976190,0.00956414,64877.0,64872.0,0.07333677]
[1718904976401,0.01,64881.0,64865.0,0.28679644]
[1718904976402,0.1827,64874.0,64865.0,0.28679644]
[1718904976595,0.1827,64874.0,64868.0,0.07333677]
[1718904976768,0.01350444,64873.0,64868.0,0.07333677]
[1718904976985,0.00956699,64872.0,64868.0,0.07333677]
[1718904977183,0.00956699,64871.0,64868.0,0.07333677]
[1718904977395,0.00956699,64870.0,64868.0,0.07333677]
[1718904977582,0.1827,64874.0,64868.0,0.07333677]
[1718904977583,0.00956699,64869.0,64868.0,0.07333677]
[1718904977799,0.1827,64874.0,64862.0,0.16200777]
[1718904977800,0.00956699,64873.0,64862.0,0.16200777]
[1718904977986,0.00956699,64873.0,64863.0,0.07333677]
[1718904977987,0.02783699,64873.0,64863.0,0.07333677]
[1718904978131,0.00956699,64872.0,64863.0,0.07333677]
[1718904978339,0.0210537,64871.0,64862.0,0.009471]
[1718904978535,0.00956699,64870.0,64862.0,0.009471]
[1718904978772,0.00956699,64870.0,64862.0,0.08280777]
[1718904978973,0.00956699,64870.0,64862.0,0.26810421]
[1718904979377,0.00956517,64869.0,64864.0,0.07628172]
[1718904979579,0.00956517,64868.0,64862.0,0.009471]
[1718904979899,0.00396065,64867.0,64862.0,0.009471]
[1718904980072,0.00956517,64866.0,64862.0,0.009471]
[1718904980301,0.00395672,64865.0,64862.0,0.009471]
[1718904980470,0.00395672,64865.0,64863.0,0.18529644]
[1718904980471,0.00956517,64864.0,64863.0,0.18529644]
[1718904980667,0.01351795,64864.0,64863.0,0.18529644]
[1718904980872,0.01351795,64864.0,64863.0,0.20405974]
[1718904981074,0.00956517,64864.0,64863.0,0.20405974]
[1718904981281,0.00956517,64869.0,64862.0,0.08280777]
[1718904981502,0.01338805,64868.0,64862.0,0.08280777]
[1718904981701,0.00956517,64867.0,64862.0,0.08280777]
[1718904982186,0.00381894,64866.0,64862.0,0.08280777]
[1718904982392,0.00956569,64865.0,64862.0,0.08280777]
[1718904982641,0.00956569,64865.0,64864.0,0.26157816]
[1718904983372,0.00956569,64865.0,64863.0,0.07333677]
[1718904983504,0.1827,64869.0,64863.0,0.07333677]
[1718904983505,0.00956569,64864.0,64863.0,0.07333677]
[1718904983711,0.00956569,64864.0,64862.0,0.009471]
[1718904983955,0.00956569,64863.0,64862.0,0.009471]
[1718904985263,0.00381778,64863.0,64862.0,0.009471]
[1718904985449,0.12805994,64863.0,64862.0,0.009471]
[1718904985653,0.12805994,64863.0,64848.0,0.1853]
[1718904985654,0.0057,64861.0,64848.0,0.07333677]
[1718904985857,0.1827,64850.0,64848.0,0.07333677]
[1718904986058,0.01331029,64849.0,64845.0,0.08280777]
[1718904986254,0.00956776,64848.0,64846.0,0.07333677]
[1718904986477,0.00374225,64847.0,64845.0,0.009471]
[1718904986843,0.00956776,64846.0,64845.0,0.009471]
[1718904987237,0.01331673,64846.0,64845.0,0.009471]
[1718904988388,0.00374897,64846.0,64845.0,0.009471]
[1718904988742,0.00956514,64848.0,64845.0,0.009471]
[1718904988949,0.00374895,64846.0,64845.0,0.009471]
[1718904989149,0.01156514,64847.0,64845.0,0.009471]
[1718904989351,0.01331409,64846.0,64845.0,0.009471]
[1718904989564,0.01431409,64846.0,64845.0,0.009471]
[1718904989757,0.01056514,64846.0,64845.0,0.009471]
[1718904989964,0.01431409,64846.0,64845.0,0.009471]
[1718904990576,0.01431409,64846.0,64845.0,0.19476744]
[1718904990756,0.01431409,64846.0,64845.0,0.26810421]
[1718904990958,0.01431409,64846.0,64845.0,0.36976751]
[1718904991383,0.00474895,64846.0,64845.0,0.16570777]
[1718904991629,0.01431418,64846.0,64845.0,0.009471]
[1718904992139,0.01056523,64846.0,64845.0,0.009471]
[1718904992343,0.01056523,64846.0,64845.0,0.19476744]
[1718904992490,0.01056523,64846.0,64841.0,0.000946]
[1718904992687,0.00956523,64845.0,64843.0,0.25863321]
[1718904992887,0.00956523,64845.0,64844.0,0.20405974]
[1718904993743,0.00956486,64849.0,64848.0,0.18529644]
[1718904993967,0.02786598,64850.0,64849.0,0.20405974]
[1718904994167,0.03743135,64850.0,64849.0,0.20405974]
[1718904994349,0.1827,64858.0,64848.0,0.084]
[1718904994555,0.1827,64853.0,64847.0,0.36123321]
[1718904994715,0.1827,64853.0,64841.0,0.000946]
[1718904994716,0.00956531,64852.0,64842.0,0.18529644]
[1718904994915,0.00956531,64852.0,64841.0,0.000946]
[1718904994916,0.1827,64848.0,64841.0,0.000946]
[1718904995318,0.1827,64843.0,64841.0,0.000946]
[1718904995471,0.00956531,64842.0,64841.0,0.000946]
[1718904995671,0.01357172,64842.0,64841.0,0.000946]
[1718904995850,0.01357172,64842.0,64841.0,0.07428277]
[1718904996055,0.0038243,64842.0,64841.0,0.000946]
[1718904996279,0.003,64848.0,64841.0,0.000946]
[1718904996437,0.1827,64846.0,64842.0,0.18529644]
[1718904996642,0.00382215,64845.0,64841.0,0.07428277]
[1718904996979,0.00382215,64845.0,64842.0,0.18529644]
[1718904997367,0.1827,64846.0,64842.0,0.18529644]
[1718904998661,0.1827,64846.0,64841.0,0.000946]
[1718904998862,0.1837,64846.0,64841.0,0.000946]
[1718904999127,0.00382215,64845.0,64841.0,0.000946]
[1718904999451,0.00382215,64845.0,64838.0,0.009471]
[1718904999674,0.1827,64841.0,64838.0,0.009471]
[1718905000080,0.00382215,64840.0,64838.0,0.009471]
[1718905000500,0.00382215,64840.0,64838.0,0.001]
[1718905001962,0.00382215,64840.0,64836.0,0.07333677]
[1718905002567,0.00382215,64840.0,64835.0,0.07333677]
[1718905002827,0.00382215,64840.0,64821.0,0.00948199]
[1718905002828,0.01979932,64839.0,64827.0,0.18529644]
[1718905003231,0.00379766,64838.0,64826.0,0.08280777]
[1718905003467,0.03588581,64837.0,64830.0,0.18529644]
[1718905003648,0.00379766,64838.0,64829.0,0.18529644]
[1718905003967,0.01979932,64839.0,64829.0,0.18529644]
[1718905003968,0.0207297,64837.0,64829.0,0.18529644]
[1718905004131,0.02452734,64837.0,64829.0,0.18529644]
[1718905004338,0.02452734,64837.0,64830.0,0.18529644]
[1718905004888,0.00379764,64837.0,64835.0,0.18529644]